fUSD/lending_fUSD_20250308
["ID","MTS","AMOUNT","RATE_DAILY","PERIOD"]
[355640661,1741419039328,-500.0,8.219e-05,2]
[355640662,1741419039339,-30000.23110502,8.219e-05,2]
[355640663,1741419039351,-1756.27846413,8.219e-05,2]
[355640664,1741419039363,-1933.81043085,8.219e-05,2]
[355640665,1741419039374,-1759.78,8.219e-05,2]
[355640666,1741419039385,-869.37948063,8.219e-05,2]
[355640667,1741419039403,-94.60051937,8.219e-05,2]
[355640668,1741419039413,-500.0,8.219e-05,2]
[355640669,1741419039422,-837.23,8.219e-05,2]
[355640670,1741419039431,-500.0,8.219e-05,2]
[355640671,1741419039441,-400.48455412,8.219e-05,2]
[355640672,1741419039460,-99.51544588,8.219e-05,2]
[355640673,1741419039469,-1407.93,8.219e-05,2]
[355640674,1741419039478,-1180.85,8.219e-05,2]
[355640675,1741419039487,-699.94063425,8.219e-05,2]
[355640676,1741419040639,-2337.49936575,8.219e-05,2]
[355640677,1741419040649,-3010.68,8.219e-05,2]
[355640678,1741419040659,-500.0,8.219e-05,2]
[355640679,1741419040669,-829.23,8.219e-05,2]
[355640680,1741419040678,-989.63,8.219e-05,2]
[355640681,1741419040689,-500.0,8.219e-05,2]
[355640682,1741419040699,-2532.15,8.219e-05,2]
[355640683,1741419040708,-1283.9,8.219e-05,2]
[355640684,1741419040718,-2306.25,8.219e-05,2]
[355640685,1741419040727,-3137.87,8.219e-05,2]
[355640686,1741419040737,-500.0,8.219e-05,2]
[355640687,1741419040746,-5395.86,8.219e-05,2]
[355640688,1741419040756,-500.0,8.219e-05,2]
[355640689,1741419040765,-1606.33,8.219e-05,2]
[355640690,1741419040775,-4106.94,8.219e-05,2]
[355640691,1741419040785,-1061.12,8.219e-05,2]
[355640692,1741419040795,-2126.01,8.219e-05,2]
[355640693,1741419040805,-866.81,8.219e-05,2]
[355640694,1741419040815,-1854.42,8.219e-05,2]
[355640695,1741419040824,-781.35,8.219e-05,2]
[355640696,1741419040834,-611.68,8.219e-05,2]
[355640697,1741419040844,-8095.56,8.219e-05,2]
[355640698,1741419040853,-5139.21063425,8.219e-05,2]
[355640768,1741419046191,-86.45936575,8.219e-05,2]
[355640769,1741419046202,-454.64075534,8.219e-05,2]
[355640770,1741419046214,-603.23924466,8.219e-05,2]
[355640771,1741419046223,-500.0,8.219e-05,2]
[355640772,1741419046232,-736.76075534,8.219e-05,2]
[355640773,1741419046340,-1722.84924466,8.219e-05,2]
[355640774,1741419046351,-3633.41,8.219e-05,2]
[355640775,1741419046361,-4389.23,8.219e-05,2]
[355640776,1741419046371,-515.15,8.219e-05,2]
[355640777,1741419046383,-217.72466959,8.219e-05,2]
[355640778,1741419046393,-500.0,8.219e-05,2]
[355640779,1741419046403,-1559.13,8.219e-05,2]
[355640780,1741419046413,-1284.75608575,8.219e-05,2]
[355640781,1741419046425,-740.44391425,8.219e-05,2]
[355640782,1741419046436,-897.66,8.219e-05,2]
[355640783,1741419046446,-522.72,8.219e-05,2]
[355640784,1741419046456,-3943.95,8.219e-05,2]
[355640785,1741419046466,-1289.93,8.219e-05,2]
[355640786,1741419046476,-756.25396327,8.219e-05,2]
[355640787,1741419046488,-1215.05552828,8.219e-05,2]
[355640788,1741419046499,-711.6719425,8.219e-05,2]
[355640789,1741419046565,-281.205,8.219e-05,2]
[355640793,1741419046685,-1282.92356595,8.219e-05,2]
[355640794,1741419046695,-17691.61,8.219e-05,2]
[355640795,1741419046706,-570.8,8.219e-05,2]
[355640796,1741419046716,-930.23,8.219e-05,2]
[355640797,1741419046725,-2122.06,8.219e-05,2]
[355640798,1741419046735,-4526.69,8.219e-05,2]
[355640799,1741419046744,-886.63,8.219e-05,2]
[355640800,1741419046754,-2122.02,8.219e-05,2]
[355640801,1741419046764,-2395.79,8.219e-05,2]
[355640802,1741419046775,-159.0,8.219e-05,3]
[355640803,1741419046785,-1139.62,8.219e-05,2]
[355640804,1741419046794,-500.0,8.219e-05,2]
[355640805,1741419046804,-500.0,8.219e-05,2]
[355640806,1741419046814,-500.0,8.219e-05,2]
[355640807,1741419046823,-1188.09,8.219e-05,2]
[355640808,1741419046832,-500.0,8.219e-05,2]
[355640809,1741419046842,-859.09,8.219e-05,2]
[355640810,1741419046853,-1813.57,8.219e-05,2]
[355640811,1741419046863,-338.51265245,8.219e-05,2]
[355640812,1741419046872,-5479.88,8.219e-05,2]
[355640813,1741419046882,-1424.42,8.219e-05,2]
[355640814,1741419046891,-457.25760468,8.219e-05,2]
[355640815,1741419046900,-7609.69443737,8.219e-05,2]
[355640816,1741419218820,200.0,8e-05,2]
[355640818,1741419897422,155.46,7.925e-05,2]
[355640830,1741420033987,200.0,7.9e-05,2]
[355640831,1741420036100,500.0,8e-05,2]
[355640846,1741420059384,193.89,7.803e-05,2]
[355640866,1741420232423,-155.46,8.163e-05,2]
[355640868,1741420232432,-100.79013672,8.192e-05,2]
[355640873,1741420232496,-49.20986328,8.192e-05,2]
[355640874,1741420232505,-180.19941953,8.218e-05,2]
[355640875,1741420232515,-500.0,8.219e-05,2]
[355640876,1741420232523,-270.13471256,8.219e-05,2]
[355640877,1741420232559,-259.93970644,8.219e-05,2]
[355640878,1741420232568,-162.484429,8.219e-05,2]
[355640879,1741420232578,-153.133921,8.219e-05,2]
[355640880,1741420232587,-182.64576961,8.219e-05,2]
[355640881,1741420232598,-430.86617395,8.219e-05,2]
[355640882,1741420232627,-84.57805644,8.219e-05,2]
[355640883,1741420232636,-317.71955872,8.219e-05,2]
[355640884,1741420232709,-4.22281428,8.219e-05,2]
[355640885,1741420232719,-500.0,8.219e-05,2]
[355640886,1741420232729,-716.02,8.219e-05,2]
[355640887,1741420232738,-620.84,8.219e-05,2]
[355640888,1741420232747,-500.0,8.219e-05,2]
[355640889,1741420232758,-500.0,8.219e-05,2]
[355640890,1741420232768,-228.41718572,8.219e-05,2]
[355640982,1741420238955,-271.58281428,8.219e-05,2]
[355640983,1741420238968,-39.60207872,8.219e-05,2]
[355640984,1741420238980,-330.0,8.219e-05,2]
[355640985,1741420238991,-130.39792128,8.219e-05,2]
[355640986,1741420239000,-501.71,8.219e-05,2]
[355640987,1741420239009,-500.0,8.219e-05,2]
[355640988,1741420239019,-846.83,8.219e-05,2]
[355640989,1741420239028,-377.76768389,8.219e-05,2]
[355640990,1741420239040,-188.29231611,8.219e-05,2]
[355640991,1741420239049,-440.18268389,8.219e-05,2]
[355640992,1741420239079,-450.96731611,8.219e-05,2]
[355640993,1741420239088,-717.2,8.219e-05,2]
[355640994,1741420239097,-500.0,8.219e-05,2]
[355640995,1741420239107,-277.17497682,8.219e-05,2]
[355640996,1741420239116,-511.18686071,8.219e-05,2]
[355640997,1741420239126,-500.0,8.219e-05,2]
[355640998,1741420239135,-500.0,8.219e-05,2]
[355640999,1741420239144,-666.84,8.219e-05,2]
[355641000,1741420239154,-825.74,8.219e-05,2]
[355641001,1741420239163,-500.0,8.219e-05,2]
[355641002,1741420239173,-670.01,8.219e-05,2]
[355641003,1741420239182,-500.0,8.219e-05,2]
[355641004,1741420239192,-500.0,8.219e-05,2]
[355641005,1741420239202,-500.0,8.219e-05,2]
[355641006,1741420239211,-535.1,8.219e-05,2]
[355641007,1741420239220,-500.0,8.219e-05,2]
[355641008,1741420239230,-926.3,8.219e-05,2]
[355641009,1741420239239,-905.59,8.219e-05,2]
[355641010,1741420239248,-500.0,8.219e-05,2]
[355641011,1741420239258,-500.0,8.219e-05,2]
[355641012,1741420239267,-889.96,8.219e-05,2]
[355641013,1741420239276,-500.0,8.219e-05,2]
[355641014,1741420239285,-688.59,8.219e-05,2]
[355641015,1741420239296,-500.0,8.219e-05,2]
[355641016,1741420239305,-500.0,8.219e-05,2]
[355641017,1741420239314,-636.16,8.219e-05,2]
[355641018,1741420239324,-779.48,8.219e-05,2]
[355641019,1741420239334,-500.0,8.219e-05,2]
[355641020,1741420239343,-500.0,8.219e-05,2]
[355641021,1741420239353,-590.04,8.219e-05,2]
[355641022,1741420239362,-500.0,8.219e-05,2]
[355641023,1741420239372,-537.33,8.219e-05,2]
[355641024,1741420239381,-500.0,8.219e-05,2]
[355641025,1741420239390,-500.0,8.219e-05,2]
[355641026,1741420239400,-780.67,8.219e-05,2]
[355641027,1741420239409,-500.0,8.219e-05,2]
[355641028,1741420239419,-500.0,8.219e-05,2]
[355641029,1741420239428,-500.0,8.219e-05,2]
[355641030,1741420239437,-1030.38,8.219e-05,2]
[355641031,1741420239447,-941.76,8.219e-05,2]
[355641032,1741420239456,-500.0,8.219e-05,2]
[355641033,1741420239465,-899.4,8.219e-05,2]
[355641034,1741420239475,-734.84,8.219e-05,2]
[355641035,1741420239484,-564.46,8.219e-05,2]
[355641036,1741420239493,-500.0,8.219e-05,2]
[355641037,1741420239503,-500.0,8.219e-05,2]
[355641038,1741420239512,-206.023,8.219e-05,2]
[355641039,1741420239521,-770.8,8.219e-05,2]
[355641040,1741420239530,-1266.98,8.219e-05,2]
[355641041,1741420239540,-500.0,8.219e-05,2]
[355641042,1741420239550,-953.91,8.219e-05,2]
[355641043,1741420239559,-691.52,8.219e-05,2]
[355641044,1741420239569,-895.9,8.219e-05,2]
[355641045,1741420239578,-500.0,8.219e-05,2]
[355641046,1741420239588,-739.74,8.219e-05,2]
[355641047,1741420239598,-1409.65,8.219e-05,2]
[355641048,1741420239607,-1030.52,8.219e-05,2]
[355641049,1741420239616,-500.0,8.219e-05,2]
[355641050,1741420239625,-665.72,8.219e-05,2]
[355641051,1741420239635,-1335.44,8.219e-05,2]
[355641052,1741420239644,-531.05,8.219e-05,2]
[355641053,1741420239653,-500.0,8.219e-05,2]
[355641054,1741420239663,-556.32,8.219e-05,2]
[355641055,1741420239673,-745.99,8.219e-05,2]
[355641056,1741420239686,-500.0,8.219e-05,2]
[355641057,1741420239699,-1072.87,8.219e-05,2]
[355641058,1741420239709,-824.01,8.219e-05,2]
[355641059,1741420239719,-500.0,8.219e-05,2]
[355641060,1741420239729,-648.38,8.219e-05,2]
[355641061,1741420239739,-574.8,8.219e-05,2]
[355641062,1741420239748,-659.84,8.219e-05,2]
[355641063,1741420239759,-848.89,8.219e-05,2]
[355641064,1741420239769,-500.0,8.219e-05,2]
[355641065,1741420239778,-500.0,8.219e-05,2]
[355641066,1741420239788,-717.79,8.219e-05,2]
[355641067,1741420239797,-695.19,8.219e-05,2]
[355641068,1741420239807,-838.3,8.219e-05,2]
[355641069,1741420239816,-799.36,8.219e-05,2]
[355641070,1741420239826,-500.0,8.219e-05,2]
[355641071,1741420239835,-500.0,8.219e-05,2]
[355641072,1741420239846,-759.99,8.219e-05,2]
[355641073,1741420239855,-500.0,8.219e-05,2]
[355641074,1741420239864,-1139.02,8.219e-05,2]
[355641075,1741420239875,-844.31,8.219e-05,2]
[355641076,1741420239884,-500.0,8.219e-05,2]
[355641077,1741420239894,-500.0,8.219e-05,2]
[355641078,1741420239903,-589.38,8.219e-05,2]
[355641079,1741420239913,-728.84,8.219e-05,2]
[355641080,1741420239922,-896.21,8.219e-05,2]
[355641081,1741420239931,-500.0,8.219e-05,2]
[355641082,1741420239941,-1023.64,8.219e-05,2]
[355641083,1741420239951,-939.73,8.219e-05,2]
[355641084,1741420239962,-549.16,8.219e-05,2]
[355641085,1741420239971,-500.0,8.219e-05,2]
[355641086,1741420239982,-1167.14,8.219e-05,2]
[355641087,1741420239992,-1212.03,8.219e-05,2]
[355641088,1741420240002,-724.98,8.219e-05,2]
[355641089,1741420240011,-500.0,8.219e-05,2]
[355641090,1741420240020,-893.96,8.219e-05,2]
[355641091,1741420240030,-500.0,8.219e-05,2]
[355641092,1741420240040,-581.6,8.219e-05,2]
[355641093,1741420240049,-500.0,8.219e-05,2]
[355641094,1741420240059,-830.69,8.219e-05,2]
[355641095,1741420240069,-1247.02,8.219e-05,2]
[355641096,1741420240078,-920.86,8.219e-05,2]
[355641097,1741420240088,-500.0,8.219e-05,2]
[355641098,1741420240097,-863.44,8.219e-05,2]
[355641099,1741420240107,-500.0,8.219e-05,2]
[355641100,1741420240116,-618.802183,8.219e-05,2]
[355641101,1741420240126,-500.0,8.219e-05,2]
[355641102,1741420240135,-500.0,8.219e-05,2]
[355641103,1741420240145,-500.0,8.219e-05,2]
[355641104,1741420240154,-500.0,8.219e-05,2]
[355641105,1741420240164,-500.0,8.219e-05,2]
[355641106,1741420240173,-298.58353294,8.219e-05,2]
[355641107,1741420240183,-709.65,8.219e-05,2]
[355641108,1741420240194,-1658.33,8.219e-05,2]
[355641109,1741420240205,-500.0,8.219e-05,2]
[355641110,1741420240217,-500.0,8.219e-05,2]
[355641111,1741420240228,-500.0,8.219e-05,2]
[355641112,1741420240239,-500.0,8.219e-05,2]
[355641113,1741420240249,-1464.52,8.219e-05,2]
[355641114,1741420240259,-873.98,8.219e-05,2]
[355641115,1741420240269,-500.0,8.219e-05,2]
[355641116,1741420240279,-1089.46,8.219e-05,2]
[355641117,1741420240289,-500.0,8.219e-05,2]
[355641118,1741420240299,-586.19,8.219e-05,2]
[355641119,1741420240309,-864.03,8.219e-05,2]
[355641120,1741420240320,-1513.57,8.219e-05,2]
[355641121,1741420240330,-644.79,8.219e-05,2]
[355641122,1741420240340,-1140.62,8.219e-05,2]
[355641123,1741420240350,-748.8,8.219e-05,2]
[355641124,1741420240361,-205.30330121,8.219e-05,2]
[355641125,1741420240370,-1334.88,8.219e-05,2]
[355641126,1741420240379,-500.0,8.219e-05,2]
[355641129,1741420240390,-500.0,8.219e-05,2]
[355641130,1741420240399,-663.43,8.219e-05,2]
[355641131,1741420240410,-59.94475221,8.219e-05,2]
[355641132,1741420240427,-836.55524779,8.219e-05,2]
[355641133,1741420240439,-614.24,8.219e-05,2]
[355641134,1741420240450,-560.15,8.219e-05,2]
[355641135,1741420240460,-1515.3,8.219e-05,2]
[355641136,1741420240470,-555.57,8.219e-05,2]
[355641137,1741420240479,-500.0,8.219e-05,2]
[355641138,1741420240490,-584.45,8.219e-05,2]
[355641139,1741420240499,-555.32,8.219e-05,2]
[355641140,1741420240509,-540.45859347,8.219e-05,2]
[355641141,1741420240518,-675.88,8.219e-05,2]
[355641142,1741420240528,-500.94,8.219e-05,2]
[355641143,1741420240538,-500.0,8.219e-05,2]
[355641144,1741420240549,-1530.56,8.219e-05,2]
[355641145,1741420240565,-1058.71,8.219e-05,2]
[355641146,1741420240575,-500.0,8.219e-05,2]
[355641147,1741420240585,-547.02,8.219e-05,2]
[355641148,1741420240594,-500.0,8.219e-05,2]
[355641149,1741420240603,-955.39,8.219e-05,2]
[355641150,1741420240613,-536.71584897,8.219e-05,2]
[355641151,1741420240622,-643.94,8.219e-05,2]
[355641152,1741420240631,-502.03936836,8.219e-05,2]
[355641153,1741420240640,-500.0,8.219e-05,2]
[355641154,1741420240650,-601.69,8.219e-05,2]
[355641155,1741420240660,-849.69,8.219e-05,2]
[355641156,1741420240671,-500.0,8.219e-05,2]
[355641157,1741420240682,-500.0,8.219e-05,2]
[355641158,1741420240694,-1589.32,8.219e-05,2]
[355641159,1741420240704,-982.39,8.219e-05,2]
[355641160,1741420240714,-500.0,8.219e-05,2]
[355641161,1741420240725,-500.0,8.219e-05,2]
[355641162,1741420240734,-500.0,8.219e-05,2]
[355641163,1741420240743,-1585.22,8.219e-05,2]
[355641164,1741420240753,-500.0,8.219e-05,2]
[355641165,1741420240765,-500.0,8.219e-05,2]
[355641166,1741420240775,-500.0,8.219e-05,2]
[355641167,1741420240785,-500.0,8.219e-05,2]
[355641168,1741420240795,-725.27,8.219e-05,2]
[355641169,1741420240805,-733.36,8.219e-05,2]
[355641170,1741420240814,-1719.19,8.219e-05,2]
[355641171,1741420240823,-500.0,8.219e-05,2]
[355641172,1741420240832,-534.27,8.219e-05,2]
[355641173,1741420240841,-500.0,8.219e-05,2]
[355641174,1741420240852,-500.0,8.219e-05,2]
[355641175,1741420240862,-500.0,8.219e-05,2]
[355641176,1741420240873,-500.0,8.219e-05,2]
[355641177,1741420240883,-500.0,8.219e-05,2]
[355641178,1741420240894,-500.0,8.219e-05,2]
[355641179,1741420240905,-449.99139202,8.219e-05,2]
[355641180,1741420240915,-576.39,8.219e-05,2]
[355641181,1741420240925,-500.0,8.219e-05,2]
[355641182,1741420240935,-500.0,8.219e-05,2]
[355641183,1741420240944,-500.0,8.219e-05,2]
[355641185,1741420240955,-753.59,8.219e-05,2]
[355641187,1741420240965,-547.4,8.219e-05,2]
[355641189,1741420240974,-1071.88,8.219e-05,2]
[355641191,1741420240985,-303.70196391,8.219e-05,2]
[355641193,1741420240994,-804.39,8.219e-05,2]
[355641194,1741420241003,-2494.78,8.219e-05,2]
[355641196,1741420241012,-500.0,8.219e-05,2]
[355641198,1741420241022,-824.88,8.219e-05,2]
[355641199,1741420241031,-1545.37,8.219e-05,2]
[355641200,1741420241040,-500.0,8.219e-05,2]
[355641201,1741420241049,-500.0,8.219e-05,2]
[355641202,1741420241059,-9624.3,8.219e-05,2]
[355641203,1741420241069,-500.0,8.219e-05,2]
[355641204,1741420241079,-500.0,8.219e-05,2]
[355641205,1741420241089,-574.56,8.219e-05,2]
[355641206,1741420241098,-568.31,8.219e-05,2]
[355641207,1741420241108,-500.0,8.219e-05,2]
[355641208,1741420241117,-500.0,8.219e-05,2]
[355641209,1741420241127,-1646.73,8.219e-05,2]
[355641210,1741420241137,-500.0,8.219e-05,2]
[355641211,1741420241146,-500.0,8.219e-05,2]
[355641212,1741420241156,-500.0,8.219e-05,2]
[355641213,1741420241165,-1530.65,8.219e-05,2]
[355641214,1741420241176,-500.0,8.219e-05,2]
[355641215,1741420241186,-500.0,8.219e-05,2]
[355641216,1741420241196,-500.0,8.219e-05,2]
[355641217,1741420241207,-500.0,8.219e-05,2]
[355641218,1741420241217,-723.39,8.219e-05,2]
[355641219,1741420241227,-500.0,8.219e-05,2]
[355641220,1741420241236,-500.0,8.219e-05,2]
[355641221,1741420241246,-500.0,8.219e-05,2]
[355641222,1741420241256,-500.0,8.219e-05,2]
[355641223,1741420241265,-500.0,8.219e-05,2]
[355641224,1741420241275,-945.28,8.219e-05,2]
[355641225,1741420241284,-8331.26,8.219e-05,2]
[355641226,1741420241294,-1490.64,8.219e-05,2]
[355641227,1741420241304,-727.29,8.219e-05,2]
[355641228,1741420241314,-1296.67,8.219e-05,2]
[355641229,1741420241323,-500.0,8.219e-05,2]
[355641230,1741420241333,-1423.83,8.219e-05,2]
[355641231,1741420241343,-3513.57,8.219e-05,2]
[355641232,1741420241352,-1994.01,8.219e-05,2]
[355641233,1741420241361,-564.13067664,8.219e-05,2]
[355641234,1741420241371,-549.83224842,8.219e-05,2]
[355641235,1741420241380,-750.82,8.219e-05,2]
[355641236,1741420241390,-1320.81,8.219e-05,2]
[355641237,1741420241400,-500.0,8.219e-05,2]
[355641238,1741420241410,-282.8998244,8.219e-05,2]
[355641239,1741420241422,-500.0,8.219e-05,2]
[355641240,1741420241431,-500.0,8.219e-05,2]
[355641241,1741420241440,-500.0,8.219e-05,2]
[355641242,1741420241451,-2732.86,8.219e-05,2]
[355641243,1741420241460,-3629.48,8.219e-05,2]
[355641244,1741420241470,-4844.02,8.219e-05,2]
[355641245,1741420241479,-565.45,8.219e-05,2]
[355641246,1741420241489,-679.88,8.219e-05,2]
[355641247,1741420241498,-1259.66,8.219e-05,2]
[355641248,1741420241508,-500.0,8.219e-05,2]
[355641249,1741420241517,-1111.01,8.219e-05,2]
[355641250,1741420241527,-500.0,8.219e-05,2]
[355641251,1741420241543,-1525.78,8.219e-05,2]
[355641252,1741420241552,-32286.55,8.219e-05,2]
[355641253,1741420241561,-566.30383351,8.219e-05,2]
[355641254,1741420241571,-2498.62,8.219e-05,2]
[355641255,1741420241581,-587.17,8.219e-05,2]
[355641256,1741420241590,-500.0,8.219e-05,2]
[355641257,1741420241599,-728.14,8.219e-05,2]
[355641258,1741420241609,-500.0,8.219e-05,2]
[355641259,1741420241619,-1401.43,8.219e-05,2]
[355641260,1741420241629,-1952.79,8.219e-05,2]
[355641261,1741420241638,-2500.96,8.219e-05,2]
[355641262,1741420241648,-802.35,8.219e-05,2]
[355641263,1741420241658,-2628.65,8.219e-05,2]
[355641264,1741420241667,-1482.34,8.219e-05,2]
[355641265,1741420241679,-500.0,8.219e-05,2]
[355641266,1741420241690,-500.0,8.219e-05,2]
[355641267,1741420241700,-1001.38,8.219e-05,2]
[355641268,1741420241710,-3344.81,8.219e-05,2]
[355641269,1741420241720,-500.0,8.219e-05,2]
[355641270,1741420241730,-682.45,8.219e-05,2]
[355641271,1741420241740,-1534.31,8.219e-05,2]
[355641272,1741420241750,-500.0,8.219e-05,2]
[355641273,1741420241760,-7332.38,8.219e-05,2]
[355641274,1741420241771,-504.96,8.219e-05,2]
[355641275,1741420241780,-757.61,8.219e-05,2]
[355641276,1741420241790,-500.0,8.219e-05,2]
[355641277,1741420241800,-429.11093747,8.219e-05,2]
[355641278,1741420241809,-1283.51,8.219e-05,2]
[355641279,1741420241819,-3324.08,8.219e-05,2]
[355641280,1741420241829,-948.39,8.219e-05,2]
[355641281,1741420241838,-500.0,8.219e-05,2]
[355641282,1741420241848,-500.0,8.219e-05,2]
[355641283,1741420241858,-574.32,8.219e-05,2]
[355641284,1741420241868,-616.1,8.219e-05,2]
[355641285,1741420241877,-4387.55,8.219e-05,2]
[355641286,1741420241888,-560.77974353,8.219e-05,2]
[355641287,1741420241897,-500.0,8.219e-05,2]
[355641288,1741420241906,-500.0,8.219e-05,2]
[355641289,1741420241916,-2426.64,8.219e-05,2]
[355641290,1741420241926,-4384.72,8.219e-05,2]
[355641291,1741420241936,-2537.53,8.219e-05,2]
[355641292,1741420241946,-631.0,8.219e-05,2]
[355641293,1741420241956,-2234.65,8.219e-05,2]
[355641294,1741420241966,-768.05,8.219e-05,2]
[355641295,1741420241975,-1179.28,8.219e-05,2]
[355641296,1741420241985,-500.02,8.219e-05,2]
[355641297,1741420241994,-710.21,8.219e-05,2]
[355641298,1741420242004,-906.17,8.219e-05,2]
[355641299,1741420242014,-5171.03,8.219e-05,2]
[355641300,1741420242023,-546.42,8.219e-05,2]
[355641301,1741420242033,-8850.58,8.219e-05,2]
[355641302,1741420242042,-2137.23,8.219e-05,2]
[355641303,1741420242052,-500.0,8.219e-05,2]
[355641304,1741420242064,-511.65745417,8.219e-05,2]
[355641305,1741420242073,-1211.76,8.219e-05,2]
[355641306,1741420242083,-515.48353115,8.219e-05,2]
[355641307,1741420242093,-792.37,8.219e-05,2]
[355641308,1741420242103,-500.0,8.219e-05,2]
[355641309,1741420242112,-500.0,8.219e-05,2]
[355641310,1741420242122,-1777.15,8.219e-05,2]
[355641311,1741420242132,-2313.48,8.219e-05,2]
[355641312,1741420242141,-500.0,8.219e-05,2]
[355641313,1741420242152,-500.0,8.219e-05,2]
[355641314,1741420242161,-3205.24,8.219e-05,2]
[355641315,1741420242171,-500.0,8.219e-05,2]
[355641316,1741420242181,-500.0,8.219e-05,2]
[355641317,1741420242190,-2401.57,8.219e-05,2]
[355641318,1741420242201,-500.0,8.219e-05,2]
[355641319,1741420242210,-503.09732235,8.219e-05,2]
[355641320,1741420242219,-1051.29,8.219e-05,2]
[355641321,1741420242229,-7758.25,8.219e-05,2]
[355641322,1741420242239,-3633.84,8.219e-05,2]
[355641323,1741420242436,-500.0,8.219e-05,2]
[355641324,1741420242447,-500.0,8.219e-05,2]
[355641325,1741420242456,-1618.54,8.219e-05,2]
[355641326,1741420242467,-1713.47,8.219e-05,2]
[355641327,1741420242477,-2161.05,8.219e-05,2]
[355641328,1741420242486,-2939.07,8.219e-05,2]
[355641329,1741420242496,-2241.14,8.219e-05,2]
[355641330,1741420242506,-878.56,8.219e-05,2]
[355641331,1741420242515,-667.02,8.219e-05,2]
[355641332,1741420242524,-2446.69,8.219e-05,2]
[355641333,1741420242534,-154.097472,8.219e-05,2]
[355641334,1741420242551,-345.902528,8.219e-05,2]
[355641335,1741420242560,-500.0,8.219e-05,2]
[355641336,1741420242570,-808.08618604,8.219e-05,2]
[355641337,1741420242920,-727.92381396,8.219e-05,2]
[355641338,1741420242929,-367.68246824,8.219e-05,2]
[355641339,1741420242951,-1621.05753176,8.219e-05,2]
[355641340,1741420242961,-2378.58959821,8.219e-05,2]
[355641341,1741420242972,-1469.6911387,8.219e-05,2]
[355641347,1741420243513,-358.06926309,8.219e-05,2]
[355641348,1741420243522,-196.13273691,8.219e-05,2]
[355641349,1741420243675,-303.86726309,8.219e-05,2]
[355641350,1741420243688,-500.0,8.219e-05,2]
[355641351,1741420243698,-120.22632509,8.219e-05,2]
[355641352,1741420243710,-836.49306317,8.219e-05,2]
[355641376,1741420246483,-47.60061174,8.219e-05,2]
[355641377,1741420246493,-697.76464007,8.219e-05,2]
[355641378,1741420246505,-1057.26535993,8.219e-05,2]
[355641379,1741420246515,-500.0,8.219e-05,2]
[355641380,1741420246524,-3989.25,8.219e-05,2]
[355641381,1741420246534,-3649.98464007,8.219e-05,2]
[355641382,1741420246546,-357.61535993,8.219e-05,2]
[355641383,1741420246555,-539.97464005,8.219e-05,2]
[355641384,1741420246675,-89.15535995,8.219e-05,2]
[355641385,1741420246688,-1208.94806149,8.219e-05,2]
[355641388,1741420553484,1300.0,8e-05,2]
[355641389,1741420596796,1479.46224017,8e-05,3]
[355641390,1741420710270,957.84,8.055e-05,2]
[355641391,1741420784092,885.3528,8.019e-05,2]
[355641392,1741420893516,164.45,7.654e-05,2]
[355641393,1741420893733,164.45,7.746e-05,2]
[355641394,1741420893934,164.45,7.837e-05,2]
[355641395,1741420894150,164.45,7.929e-05,2]
[355641396,1741420894585,164.45,8.021e-05,2]
[355641397,1741420987571,1440.8,8.021e-05,2]
[355641398,1741421003998,1580.0,8.02e-05,2]
[355641406,1741421228000,400.0,7.9e-05,2]
[355641409,1741421230313,900.0,8e-05,2]
[355641432,1741421309249,35916.31,8e-05,2]
[355641434,1741421371033,150.0,0.00014111,120]
[355641435,1741421401740,202.69,7.526e-05,2]
[355641436,1741421431535,-520.41993916,8.11e-05,2]
[355641437,1741421431596,-40366.47598522,8.11e-05,2]
[355641438,1741421431606,-164.45,8.113e-05,2]
[355641439,1741421431616,-4018.7637,8.119e-05,2]
[355641440,1741421431625,-150.0,8.189e-05,2]
[355641441,1741421431635,-23087.21876749,8.19e-05,2]
[355641442,1741421431644,-500.0,8.192e-05,2]
[355641443,1741421431653,-150.22557359,8.193e-05,2]
[355641444,1741421431663,-500.0,8.218e-05,2]